{"text_format":"1","workbook":"xlsx","n_sheets":2,"sheets":[">05 22","graph"],"not_rendered":{"charts":1,"images":0,"macros":1,"external_links":0,"defined_names":0,"comments":0,"pivot_tables":0},"unopened":[],"bounds":{"document_bytes":16777216,"sheet_cells":100000,"rows_first":2000,"rows_last":500,"rows_between":2000,"halvings":0,"cell_chars":16384,"cell_head_chars":4096},"cells_cut":0,"cells_raw":0,"read":"whole","date_system":"1900"}

{"sheet":">05 22","index":0,"n_rows":231,"n_cols":20,"rows_kept":231,"cut":false,"hidden":false,"merged":[[39,10,39,14],[1,17,1,19],[14,2,14,14],[12,5,12,9],[11,10,11,14],[1,2,1,15],[2,2,2,4],[2,5,2,9],[2,10,2,14],[8,10,8,14]]}
[null,null,null,null,null,null,null,null,null,null,null,null,null,null,null,null,null,{"$f":"+T3","v":95.24146341463414}]
[null,null,"De manière habituelle 1 tranche de pain par repas et un petit verre de vin par repas,              Dans la journée boissons eau minérale pétillante avec Pulco",null,null,null,null,null,null,null,null,null,null,null,null,null,null,"moyenne des poids matinaux"]
[null,"Pds","Matin",null,null,"Mdi",null,null,null,null,"Soir",null,null,null,null,95,null,{"$f":"SUM(R4:R231)","v":41},{"$f":"SUM(B4:B133)","v":3904.8999999999996},{"$f":"S3/R3","v":95.24146341463414}]
[1,95,"café lait 0%","tartine beurre",null,null,"hericots verts","Merlu",null,"pomme","groseilles","gratin courges","steack",null,null,95,null,{"$f":"IF(B4>0,1,0)","v":1}]
[{"$f":"1+A4","v":2},94.6,"café lait 0%","tartine beurre","yaourt",null,"huitres","champignons","yaourt","banane","salade verte","flageolets","2 oeufs","yaourt","pomme",94.9,null,1]
[{"$f":"1+A5","v":3},93.9,"café lait 0%","tartine beurre","yaourt",null,"moules sans mg",null,"yaourt","pomme","salade verte","riz jus moule",null,"yaourt","groseilles",94,null,1]
[4,94,"café lait 0%","tartine beurre","yaourt","salade verte","chataigne","civet sanglier","gâteau","groseilles",null,null,null,null,null,95.8,null,1]
[5,95.8,"café lait 0%","tartine beurre","yaourt","salade verte","tomates provencales","civet sanglier","yaourt","groseilles",null,"lentilles",null,"yaourt","groseilles",96,null,1]
[6,96,"café lait 0%","tartine beurre","yaourt",null,"lentilles","poulet mariné","yaourt","banane","anniversaire MAKE",null,null,null,null,98,null,1]
[7,97.5,"café lait 0%","tartine beurre","yaourt",null,"poirée légumes","steak haché",null,"poire banane","salade verte","choux fleur",null,"yaourt","banane",95.2,null,1]
[8,94.8,"café lait 0%","tartine beurre",null,"salade verte",null,"gambas","yaourt","orange","salade verte","avocat","flegeolets","yaourt","banane",95.6,null,1]
[9,94.8,"café lait 0%","tartine beurre","yaourt","salade verte","flageolets",null,"yaourt","orange","anniversaire David & Merline",null,null,null,null,96,null,1]
[10,95.8,"café lait 0%","tartine beurre","yaourt","repas de famille",null,null,null,null,null,null,null,"yaourt","groseilles",96,null,1]
[11,95.8,"café lait 0%","tartine beurre","yaourt","salade verte","gourges grillée","un peu de terrine","yaourt","orange","salade verte",null,"tranche thon","yaourt","banane",96,null,1]
[12,95.8,"A partir de cette ligne le pain est fait avec 66 % de T80 et 33 % de T65 ou de maïs",null,null,null,null,null,null,null,null,null,null,null,null,96.4,null,1]
[13,95.8,"café lait 0%","tartine beurre","yaourt","salade verte","gourges grillée","Merlu","yaourt","orange","salade verte","avocat","choucroute","yaourt","groseilles",96.4,null,1]
[14,95.5,"café lait 0%","tartine beurre","yaourt","salade verte","courgettes","petit steack","yaourt","orange","apéro comptoir",null,null,null,"groseilles",96.4,null,1]
[15,96.4,"café lait 0%","tartine beurre","yaourt","Artichaut","choux fleurs","tranche merlu","yaourt","orange","salade verte",null,"crevettes",null,"ananas",96.4,null,1]
[16,95.4,"café lait 0%","tartine beurre","yaourt",null,"pommes terre nouvelles","moules","yaourt","ananas","salade verte","courgettes",null,"yaourt","groseilles",96.4,null,1]
[17,95.8,"café lait 0%","tartine beurre",null,"salade verte","courgettes",null,"yaourt","orange","salade calamar","pommes terre","cote de bœuf","fromage","crème glaces +  clafoutis",96.2,null,1]
[18,95.8,"café lait 0%",null,"yaourt","salade verte","quenelles",null,"yaourt",null,"salade verte",null,"mariscada","yaourt","clafoutis 2",95.8,null,1]
[19,95.8,"café lait 0%","tartine beurre","yaourt","salade verte",null,"darne merlu","yaourt","clafoutis","salade verte","buternut",null,"yaourt","orange",95.8,null,1]
[20,95.8,"café lait 0%","tartine beurre","yaourt","salade verte",null,"poulet mariné","yaourt","clafoutis","salade verte","buternut","gratin courge","C","banane",96.2,null,1]
[21,95.4,"café lait 0%","tartine beurre",null,"salade verte","gratin courge","tranche thon","yaourt","orange","salade verte",null,"gratin courge","fromage",null,97.3,null,1]
[22,96.2,"café lait 0%","tartine beurre",null,"salade verte","gratin courge","darne merlu","yaourt","banane",null,"gratin courge","brandade morue",null,"orange",96.2,null,1]
[23,95.1,"café lait 0%","tartine beurre",null,"salade verte","riz","poulet mariné",null,"orange","salade verte",null,"brocolis","yaourt","banane",95.1,null,1]
[24,94.8,"café lait 0%","tartine beurre","yaourt",null,"haricots","magret","fromaege","beignets courgette",null,null,null,"  2 yaourt","orange",95.8,null,1]
[25,96.2,"café lait 0%","tartine beurre",null,"melon","pommes de terre","saumon","yaourt","orange","melon","flageolets",null,"yaourt","banane",96.3,null,1]
[26,95.3,"café lait 0%","tartine beurre","yaourt","salade verte",null,"gras double","yaourt","orange",null,null,null,"yaourt","pomme",95.5,null,{"$f":"IF(B29>0,1,0)","v":1}]
[27,94.9,"café lait 0%","tartine beurre",null,"salade verte","courgettes","poulet mariné","yaourt",null,"salade verte","pommes terre",null,"yaourt grec 2",null,95.5,null,{"$f":"IF(B30>0,1,0)","v":1}]
[28,94.9,"café lait 0%","tartine beurre","yaourt grec","melon",null,"crevettes","yaourt grec","banane","melon","haricots verts",null,"yaourt grec","moix de coco",95.5,null,1]
[29,95.3,"café lait 0%","tartine beurre","yaourt grec","terrine","courgettes","terrine","yaourt grec","noix de coco","avocat","brandade maison",null,"yaourt grec 2","banane",95.3,null,1]
[30,94.5,"café lait 0%","tartine beurre",null,"melon",null,"jambon 2","yaourt grec","banane"," ",null,"jambon 2 ",null,"banane",96.3,null,1]
[31,95.2,"café lait 0%","tartine beurre","yaourt grec","pastèque",null,"paëlla",null,"petit gâteau","salade thon",null,null,null,"pêches 2",97.2,null,1]
[32,96.3,"café lait 0%","tartine beurre",null,"avocat",null,"paëlla",null,"banane","avocat","courgettes",null,null,"abricots",96.6,null,1]
[33,95.1,"café lait 0%","tartine beurre",null,"avocat",null,"pommes terres ognons",null,"abricots",null,null,"paële",null,"abricots",95.5,null,1]
[34,95.5,"café lait 0%","tartine beurre",null,null,null,"pommes terres ognons",null,"abricots",null,null,"poulet grillé",null,"cerises",95,null,1]
[35,95.2,"café lait 0%","tartine beurre",null,null,null,"courgettes oignons",null,"cerise abricots","apéro ",null,"mechooi",null,"gâteau",97.5,null,1]
[36,96.6,"café lait 0%","tartine beurre",null,null,"riz","saucisses 2",null,"abricots",null,null,null,"kiri 2","abricots",96.6,null,1]
[37,96,"café lait 0%","tartine beurre",null,"melon",null,"gambas",null,"kiri 2","barbecue",null,null,null,null,97.9,null,1]
[38,96.2,"café lait 0%","tartine beurre","yaourt","melon","courgettes","poulet mariné","yaourt","banane","salade","petits pois",null,"yaourt","prange",97.1,null,1]
[39,96.1,"café lait 0%","tartine beurre","yaourt",null,null,null,null,null,null,null,null,null,null,96.1,null,1]
[40,100,null,null,null,null,null,null,null,null,null,null,null,null,null,105,null,1]
[41,80,null,null,null,null,null,null,null,null,null,null,null,null,null,90,null,1]
[42,null,null,null,null,null,null,null,null,null,null,null,null,null,null,null,null,0]
[43,null,null,null,null,null,null,null,null,null,null,null,null,null,null,null,null,0]
[44,null,null,null,null,null,null,null,null,null,null,null,null,null,null,null,null,0]
[45,null,null,null,null,null,null,null,null,null,null,null,null,null,null,null,null,0]
[46,null,null,null,null,null,null,null,null,null,null,null,null,null,null,null,null,0]
[47,null,null,null,null,null,null,null,null,null,null,null,null,null,null,null,null,0]
[48,null,null,null,null,null,null,null,null,null,null,null,null,null,null,null,null,0]
[49,null,null,null,null,null,null,null,null,null,null,null,null,null,null,null,null,0]
[50,null,null,null,null,null,null,null,null,null,null,null,null,null,null,null,null,0]
[51,null,null,null,null,null,null,null,null,null,null,null,null,null,null,null,null,0]
[52,null,null,null,null,null,null,null,null,null,null,null,null,null,null,null,null,0]
[53,null,null,null,null,null,null,null,null,null,null,null,null,null,null,null,null,0]
[54,null,null,null,null,null,null,null,null,null,null,null,null,null,null,null,null,0]
[55,null,null,null,null,null,null,null,null,null,null,null,null,null,null,null,null,0]
[56,null,null,null,null,null,null,null,null,null,null,null,null,null,null,null,null,0]
[57,null,null,null,null,null,null,null,null,null,null,null,null,null,null,null,null,0]
[58,null,null,null,null,null,null,null,null,null,null,null,null,null,null,null,null,0]
[59,null,null,null,null,null,null,null,null,null,null,null,null,null,null,null,null,0]
[60,null,null,null,null,null,null,null,null,null,null,null,null,null,null,null,null,0]
[61,null,null,null,null,null,null,null,null,null,null,null,null,null,null,null,null,0]
[62,null,null,null,null,null,null,null,null,null,null,null,null,null,null,null,null,0]
[63,null,null,null,null,null,null,null,null,null,null,null,null,null,null,null,null,0]
[64,null,null,null,null,null,null,null,null,null,null,null,null,null,null,null,null,0]
[65,null,null,null,null,null,null,null,null,null,null,null,null,null,null,null,null,0]
[66,null,null,null,null,null,null,null,null,null,null,null,null,null,null,null,null,0]
[67,null,null,null,null,null,null,null,null,null,null,null,null,null,null,null,null,0]
[68,null,null,null,null,null,null,null,null,null,null,null,null,null,null,null,null,0]
[69,null,null,null,null,null,null,null,null,null,null,null,null,null,null,null,null,0]
[70,null,null,null,null,null,null,null,null,null,null,null,null,null,null,null,null,0]
[71,null,null,null,null,null,null,null,null,null,null,null,null,null,null,null,null,0]
[72,null,null,null,null,null,null,null,null,null,null,null,null,null,null,null,null,0]
[73,null,null,null,null,null,null,null,null,null,null,null,null,null,null,null,null,0]
[74,null,null,null,null,null,null,null,null,null,null,null,null,null,null,null,null,0]
[75,null,null,null,null,null,null,null,null,null,null,null,null,null,null,null,null,0]
[76,null,null,null,null,null,null,null,null,null,null,null,null,null,null,null,null,0]
[77,null,null,null,null,null,null,null,null,null,null,null,null,null,null,null,null,0]
[78,null,null,null,null,null,null,null,null,null,null,null,null,null,null,null,null,0]
[79,null,null,null,null,null,null,null,null,null,null,null,null,null,null,null,null,0]
[80,null,null,null,null,null,null,null,null,null,null,null,null,null,null,null,null,0]
[81,null,null,null,null,null,null,null,null,null,null,null,null,null,null,null,null,0]
[82,null,null,null,null,null,null,null,null,null,null,null,null,null,null,null,null,0]
[83,null,null,null,null,null,null,null,null,null,null,null,null,null,null,null,null,0]
[84,null,null,null,null,null,null,null,null,null,null,null,null,null,null,null,null,0]
[85,null,null,null,null,null,null,null,null,null,null,null,null,null,null,null,null,0]
[86,null,null,null,null,null,null,null,null,null,null,null,null,null,null,null,null,0]
[87,null,null,null,null,null,null,null,null,null,null,null,null,null,null,null,null,0]
[88,null,null,null,null,null,null,null,null,null,null,null,null,null,null,null,null,0]
[89,null,null,null,null,null,null,null,null,null,null,null,null,null,null,null,null,0]
[90,null,null,null,null,null,null,null,null,null,null,null,null,null,null,null,null,0]
[91,null,null,null,null,null,null,null,null,null,null,null,null,null,null,null,null,{"$f":"IF(B94>0,1,0)","v":0}]
[92,null,null,null,null,null,null,null,null,null,null,null,null,null,null,null,null,0]
[93,null,null,null,null,null,null,null,null,null,null,null,null,null,null,null,null,0]
[94,null,null,null,null,null,null,null,null,null,null,null,null,null,null,null,null,0]
[95,null,null,null,null,null,null,null,null,null,null,null,null,null,null,null,null,0]
[96,null,null,null,null,null,null,null,null,null,null,null,null,null,null,null,null,0]
[97,null,null,null,null,null,null,null,null,null,null,null,null,null,null,null,null,0]
[98,null,null,null,null,null,null,null,null,null,null,null,null,null,null,null,null,0]
[99,null,null,null,null,null,null,null,null,null,null,null,null,null,null,null,null,0]
[100,null,null,null,null,null,null,null,null,null,null,null,null,null,null,null,null,0]
[101,null,null,null,null,null,null,null,null,null,null,null,null,null,null,null,null,0]
[102,null,null,null,null,null,null,null,null,null,null,null,null,null,null,null,null,0]
[103,null,null,null,null,null,null,null,null,null,null,null,null,null,null,null,null,0]
[104,null,null,null,null,null,null,null,null,null,null,null,null,null,null,null,null,0]
[105,null,null,null,null,null,null,null,null,null,null,null,null,null,null,null,null,0]
[106,null,null,null,null,null,null,null,null,null,null,null,null,null,null,null,null,0]
[107,null,null,null,null,null,null,null,null,null,null,null,null,null,null,null,null,0]
[108,null,null,null,null,null,null,null,null,null,null,null,null,null,null,null,null,0]
[109,null,null,null,null,null,null,null,null,null,null,null,null,null,null,null,null,0]
[110,null,null,null,null,null,null,null,null,null,null,null,null,null,null,null,null,0]
[111,null,null,null,null,null,null,null,null,null,null,null,null,null,null,null,null,0]
[112,null,null,null,null,null,null,null,null,null,null,null,null,null,null,null,null,0]
[113,null,null,null,null,null,null,null,null,null,null,null,null,null,null,null,null,0]
[114,null,null,null,null,null,null,null,null,null,null,null,null,null,null,null,null,0]
[115,null,null,null,null,null,null,null,null,null,null,null,null,null,null,null,null,0]
[116,null,null,null,null,null,null,null,null,null,null,null,null,null,null,null,null,0]
[117,null,null,null,null,null,null,null,null,null,null,null,null,null,null,null,null,0]
[118,null,null,null,null,null,null,null,null,null,null,null,null,null,null,null,null,0]
[119,null,null,null,null,null,null,null,null,null,null,null,null,null,null,null,null,0]
[120,null,null,null,null,null,null,null,null,null,null,null,null,null,null,null,null,0]
[121,null,null,null,null,null,null,null,null,null,null,null,null,null,null,null,null,0]
[122,null,null,null,null,null,null,null,null,null,null,null,null,null,null,null,null,0]
[123,null,null,null,null,null,null,null,null,null,null,null,null,null,null,null,null,0]
[124,null,null,null,null,null,null,null,null,null,null,null,null,null,null,null,null,0]
[125,null,null,null,null,null,null,null,null,null,null,null,null,null,null,null,null,0]
[{"$f":"1+A128","v":126},null,null,null,null,null,null,null,null,null,null,null,null,null,null,null,null,0]
[127,null,null,null,null,null,null,null,null,null,null,null,null,null,null,null,null,0]
[128,null,null,null,null,null,null,null,null,null,null,null,null,null,null,null,null,0]
[129,null,null,null,null,null,null,null,null,null,null,null,null,null,null,null,null,0]
[130,null,null,null,null,null,null,null,null,null,null,null,null,null,null,null,null,0]
[131,null,null,null,null,null,null,null,null,null,null,null,null,null,null,null,null,0]
[132,null,null,null,null,null,null,null,null,null,null,null,null,null,null,null,null,0]
[133,null,null,null,null,null,null,null,null,null,null,null,null,null,null,null,null,0]
[134,null,null,null,null,null,null,null,null,null,null,null,null,null,null,null,null,0]
[135,null,null,null,null,null,null,null,null,null,null,null,null,null,null,null,null,0]
[136,null,null,null,null,null,null,null,null,null,null,null,null,null,null,null,null,0]
[137,null,null,null,null,null,null,null,null,null,null,null,null,null,null,null,null,0]
[138,null,null,null,null,null,null,null,null,null,null,null,null,null,null,null,null,0]
[139,null,null,null,null,null,null,null,null,null,null,null,null,null,null,null,null,0]
[140,null,null,null,null,null,null,null,null,null,null,null,null,null,null,null,null,0]
[141,null,null,null,null,null,null,null,null,null,null,null,null,null,null,null,null,0]
[142,null,null,null,null,null,null,null,null,null,null,null,null,null,null,null,null,0]
[143,null,null,null,null,null,null,null,null,null,null,null,null,null,null,null,null,0]
[144,null,null,null,null,null,null,null,null,null,null,null,null,null,null,null,null,0]
[145,null,null,null,null,null,null,null,null,null,null,null,null,null,null,null,null,0]
[146,null,null,null,null,null,null,null,null,null,null,null,null,null,null,null,null,0]
[147,null,null,null,null,null,null,null,null,null,null,null,null,null,null,null,null,0]
[148,null,null,null,null,null,null,null,null,null,null,null,null,null,null,null,null,0]
[null,null,null,null,null,null,null,null,null,null,null,null,null,null,null,null,null,0]
[null,null,null,null,null,null,null,null,null,null,null,null,null,null,null,null,null,0]
[null,null,null,null,null,null,null,null,null,null,null,null,null,null,null,null,null,0]
[null,null,null,null,null,null,null,null,null,null,null,null,null,null,null,null,null,0]
[null,null,null,null,null,null,null,null,null,null,null,null,null,null,null,null,null,0]
[null,null,null,null,null,null,null,null,null,null,null,null,null,null,null,null,null,0]
[null,null,null,null,null,null,null,null,null,null,null,null,null,null,null,null,null,{"$f":"IF(B158>0,1,0)","v":0}]
[null,null,null,null,null,null,null,null,null,null,null,null,null,null,null,null,null,0]
[null,null,null,null,null,null,null,null,null,null,null,null,null,null,null,null,null,0]
[null,null,null,null,null,null,null,null,null,null,null,null,null,null,null,null,null,0]
[null,null,null,null,null,null,null,null,null,null,null,null,null,null,null,null,null,0]
[null,null,null,null,null,null,null,null,null,null,null,null,null,null,null,null,null,0]
[null,null,null,null,null,null,null,null,null,null,null,null,null,null,null,null,null,0]
[null,null,null,null,null,null,null,null,null,null,null,null,null,null,null,null,null,0]
[null,null,null,null,null,null,null,null,null,null,null,null,null,null,null,null,null,0]
[null,null,null,null,null,null,null,null,null,null,null,null,null,null,null,null,null,0]
[null,null,null,null,null,null,null,null,null,null,null,null,null,null,null,null,null,0]
[null,null,null,null,null,null,null,null,null,null,null,null,null,null,null,null,null,0]
[null,null,null,null,null,null,null,null,null,null,null,null,null,null,null,null,null,0]
[null,null,null,null,null,null,null,null,null,null,null,null,null,null,null,null,null,0]
[null,null,null,null,null,null,null,null,null,null,null,null,null,null,null,null,null,0]
[null,null,null,null,null,null,null,null,null,null,null,null,null,null,null,null,null,0]
[null,null,null,null,null,null,null,null,null,null,null,null,null,null,null,null,null,0]
[null,null,null,null,null,null,null,null,null,null,null,null,null,null,null,null,null,0]
[null,null,null,null,null,null,null,null,null,null,null,null,null,null,null,null,null,0]
[null,null,null,null,null,null,null,null,null,null,null,null,null,null,null,null,null,0]
[null,null,null,null,null,null,null,null,null,null,null,null,null,null,null,null,null,0]
[null,null,null,null,null,null,null,null,null,null,null,null,null,null,null,null,null,0]
[null,null,null,null,null,null,null,null,null,null,null,null,null,null,null,null,null,0]
[null,null,null,null,null,null,null,null,null,null,null,null,null,null,null,null,null,0]
[null,null,null,null,null,null,null,null,null,null,null,null,null,null,null,null,null,0]
[null,null,null,null,null,null,null,null,null,null,null,null,null,null,null,null,null,0]
[null,null,null,null,null,null,null,null,null,null,null,null,null,null,null,null,null,0]
[null,null,null,null,null,null,null,null,null,null,null,null,null,null,null,null,null,0]
[null,null,null,null,null,null,null,null,null,null,null,null,null,null,null,null,null,0]
[null,null,null,null,null,null,null,null,null,null,null,null,null,null,null,null,null,0]
[null,null,null,null,null,null,null,null,null,null,null,null,null,null,null,null,null,0]
[null,null,null,null,null,null,null,null,null,null,null,null,null,null,null,null,null,0]
[null,null,null,null,null,null,null,null,null,null,null,null,null,null,null,null,null,0]
[null,null,null,null,null,null,null,null,null,null,null,null,null,null,null,null,null,0]
[null,null,null,null,null,null,null,null,null,null,null,null,null,null,null,null,null,0]
[null,null,null,null,null,null,null,null,null,null,null,null,null,null,null,null,null,0]
[null,null,null,null,null,null,null,null,null,null,null,null,null,null,null,null,null,0]
[null,null,null,null,null,null,null,null,null,null,null,null,null,null,null,null,null,0]
[null,null,null,null,null,null,null,null,null,null,null,null,null,null,null,null,null,0]
[null,null,null,null,null,null,null,null,null,null,null,null,null,null,null,null,null,0]
[null,null,null,null,null,null,null,null,null,null,null,null,null,null,null,null,null,0]
[null,null,null,null,null,null,null,null,null,null,null,null,null,null,null,null,null,0]
[null,null,null,null,null,null,null,null,null,null,null,null,null,null,null,null,null,0]
[null,null,null,null,null,null,null,null,null,null,null,null,null,null,null,null,null,0]
[null,null,null,null,null,null,null,null,null,null,null,null,null,null,null,null,null,0]
[null,null,null,null,null,null,null,null,null,null,null,null,null,null,null,null,null,0]
[null,null,null,null,null,null,null,null,null,null,null,null,null,null,null,null,null,0]
[null,null,null,null,null,null,null,null,null,null,null,null,null,null,null,null,null,0]
[null,null,null,null,null,null,null,null,null,null,null,null,null,null,null,null,null,0]
[null,null,null,null,null,null,null,null,null,null,null,null,null,null,null,null,null,0]
[null,null,null,null,null,null,null,null,null,null,null,null,null,null,null,null,null,0]
[null,null,null,null,null,null,null,null,null,null,null,null,null,null,null,null,null,0]
[null,null,null,null,null,null,null,null,null,null,null,null,null,null,null,null,null,0]
[null,null,null,null,null,null,null,null,null,null,null,null,null,null,null,null,null,0]
[null,null,null,null,null,null,null,null,null,null,null,null,null,null,null,null,null,0]
[null,null,null,null,null,null,null,null,null,null,null,null,null,null,null,null,null,0]
[null,null,null,null,null,null,null,null,null,null,null,null,null,null,null,null,null,0]
[null,null,null,null,null,null,null,null,null,null,null,null,null,null,null,null,null,0]
[null,null,null,null,null,null,null,null,null,null,null,null,null,null,null,null,null,0]
[null,null,null,null,null,null,null,null,null,null,null,null,null,null,null,null,null,0]
[null,null,null,null,null,null,null,null,null,null,null,null,null,null,null,null,null,0]
[null,null,null,null,null,null,null,null,null,null,null,null,null,null,null,null,null,0]
[null,null,null,null,null,null,null,null,null,null,null,null,null,null,null,null,null,0]
[null,null,null,null,null,null,null,null,null,null,null,null,null,null,null,null,null,0]
[null,null,null,null,null,null,null,null,null,null,null,null,null,null,null,null,null,{"$f":"IF(B222>0,1,0)","v":0}]
[null,null,null,null,null,null,null,null,null,null,null,null,null,null,null,null,null,0]
[null,null,null,null,null,null,null,null,null,null,null,null,null,null,null,null,null,0]
[null,null,null,null,null,null,null,null,null,null,null,null,null,null,null,null,null,0]
[null,null,null,null,null,null,null,null,null,null,null,null,null,null,null,null,null,0]
[null,null,null,null,null,null,null,null,null,null,null,null,null,null,null,null,null,0]
[null,null,null,null,null,null,null,null,null,null,null,null,null,null,null,null,null,0]
[null,null,null,null,null,null,null,null,null,null,null,null,null,null,null,null,null,0]
[null,null,null,null,null,null,null,null,null,null,null,null,null,null,null,null,null,0]
[null,null,null,null,null,null,null,null,null,null,null,null,null,null,null,null,null,0]

{"sheet":"graph","index":1,"n_rows":44,"n_cols":3,"rows_kept":44,"cut":false,"hidden":false,"merged":[]}
[]
[]
["jours","avant","apres"]
[1,{"$f":"'>05 22'!B4","v":95},{"$f":"'>05 22'!P4","v":95}]
[{"$f":"1+A4","v":2},{"$f":"'>05 22'!B5","v":94.6},{"$f":"'>05 22'!P5","v":94.9}]
[{"$f":"1+A5","v":3},{"$f":"'>05 22'!B6","v":93.9},{"$f":"'>05 22'!P6","v":94}]
[4,{"$f":"'>05 22'!B7","v":94},{"$f":"'>05 22'!P7","v":95.8}]
[5,{"$f":"'>05 22'!B8","v":95.8},{"$f":"'>05 22'!P8","v":96}]
[6,{"$f":"'>05 22'!B9","v":96},{"$f":"'>05 22'!P9","v":98}]
[7,{"$f":"'>05 22'!B10","v":97.5},{"$f":"'>05 22'!P10","v":95.2}]
[8,{"$f":"'>05 22'!B11","v":94.8},{"$f":"'>05 22'!P11","v":95.6}]
[9,{"$f":"'>05 22'!B12","v":94.8},{"$f":"'>05 22'!P12","v":96}]
[10,{"$f":"'>05 22'!B13","v":95.8},{"$f":"'>05 22'!P13","v":96}]
[11,{"$f":"'>05 22'!B14","v":95.8},{"$f":"'>05 22'!P14","v":96}]
[12,{"$f":"'>05 22'!B15","v":95.8},{"$f":"'>05 22'!P15","v":96.4}]
[13,{"$f":"'>05 22'!B16","v":95.8},{"$f":"'>05 22'!P16","v":96.4}]
[14,{"$f":"'>05 22'!B17","v":95.5},{"$f":"'>05 22'!P17","v":96.4}]
[15,{"$f":"'>05 22'!B18","v":96.4},{"$f":"'>05 22'!P18","v":96.4}]
[16,{"$f":"'>05 22'!B19","v":95.4},{"$f":"'>05 22'!P19","v":96.4}]
[17,{"$f":"'>05 22'!B20","v":95.8},{"$f":"'>05 22'!P20","v":96.2}]
[18,{"$f":"'>05 22'!B21","v":95.8},{"$f":"'>05 22'!P21","v":95.8}]
[19,{"$f":"'>05 22'!B22","v":95.8},{"$f":"'>05 22'!P22","v":95.8}]
[20,{"$f":"'>05 22'!B23","v":95.8},{"$f":"'>05 22'!P23","v":96.2}]
[21,{"$f":"'>05 22'!B24","v":95.4},{"$f":"'>05 22'!P24","v":97.3}]
[22,{"$f":"'>05 22'!B25","v":96.2},{"$f":"'>05 22'!P25","v":96.2}]
[23,{"$f":"'>05 22'!B26","v":95.1},{"$f":"'>05 22'!P26","v":95.1}]
[24,{"$f":"'>05 22'!B27","v":94.8},{"$f":"'>05 22'!P27","v":95.8}]
[25,{"$f":"'>05 22'!B28","v":96.2},{"$f":"'>05 22'!P28","v":96.3}]
[26,{"$f":"'>05 22'!B29","v":95.3},{"$f":"'>05 22'!P29","v":95.5}]
[27,{"$f":"'>05 22'!B30","v":94.9},{"$f":"'>05 22'!P30","v":95.5}]
[28,{"$f":"'>05 22'!B31","v":94.9},{"$f":"'>05 22'!P31","v":95.5}]
[29,{"$f":"'>05 22'!B32","v":95.3},{"$f":"'>05 22'!P32","v":95.3}]
[30,{"$f":"'>05 22'!B33","v":94.5},{"$f":"'>05 22'!P33","v":96.3}]
[31,{"$f":"'>05 22'!B34","v":95.2},{"$f":"'>05 22'!P34","v":97.2}]
[32,{"$f":"'>05 22'!B35","v":96.3},{"$f":"'>05 22'!P35","v":96.6}]
[33,{"$f":"'>05 22'!B36","v":95.1},{"$f":"'>05 22'!P36","v":95.5}]
[34,{"$f":"'>05 22'!B37","v":95.5},{"$f":"'>05 22'!P37","v":95}]
[35,{"$f":"'>05 22'!B38","v":95.2},{"$f":"'>05 22'!P38","v":97.5}]
[36,{"$f":"'>05 22'!B39","v":96.6},{"$f":"'>05 22'!P39","v":96.6}]
[37,{"$f":"'>05 22'!B40","v":96},{"$f":"'>05 22'!P40","v":97.9}]
[38,{"$f":"'>05 22'!B41","v":96.2},{"$f":"'>05 22'!P41","v":97.1}]
[39,{"$f":"'>05 22'!B42","v":96.1},{"$f":"'>05 22'!P42","v":96.1}]
[40,{"$f":"'>05 22'!B43","v":100},{"$f":"'>05 22'!P43","v":105}]
[41,88,90]